fUST/lending_fUST_20250426
["ID","MTS","AMOUNT","RATE_DAILY","PERIOD"]
[359057400,1745681432899,-6319.66939486,0.00015368,2]
[359057402,1745681432911,-6319.66939486,0.00015368,2]
[359057404,1745681432922,-6319.66939486,0.00015368,2]
[359057406,1745681432932,-6319.66939486,0.00015368,2]
[359057408,1745681432942,-6319.66939486,0.00015368,2]
[359057410,1745681432953,-6319.66939486,0.00015368,2]
[359057412,1745681432963,-6319.66939486,0.00015368,2]
[359057414,1745681432973,-6319.66939486,0.00015368,2]
[359057416,1745681432983,-6319.66939486,0.00015368,2]
[359057418,1745681432992,-500.0,0.00015368,2]
[359057420,1745681433003,-500.0,0.00015368,2]
[359057422,1745681433012,-500.0,0.00015368,2]
[359057424,1745681433023,-500.0,0.00015368,2]
[359057426,1745681433033,-500.0,0.00015368,2]
[359057428,1745681433045,-416.83296634,0.00015368,2]
[359057431,1745681433055,-500.0,0.00015368,2]
[359057433,1745681433065,-6216.79105588,0.00015368,2]
[359057435,1745681433076,-6216.79105588,0.00015368,2]
[359057437,1745681433086,-6216.79105588,0.00015368,2]
[359057439,1745681433097,-6216.79105588,0.00015368,2]
[359057441,1745681433107,-6216.79105588,0.00015368,2]
[359057443,1745681433117,-6216.79105588,0.00015368,2]
[359057445,1745681433127,-6216.79105588,0.00015368,2]
[359057446,1745681433137,-6216.79105588,0.00015368,2]
[359057449,1745681433148,-6216.79105588,0.00015368,2]
[359057451,1745681433158,-6216.79105588,0.00015368,2]
[359057453,1745681433168,-6216.79105588,0.00015368,2]
[359057455,1745681433178,-6216.79105588,0.00015368,2]
[359057457,1745681433188,-6216.79105588,0.00015368,2]
[359057459,1745681433198,-6216.79105588,0.00015368,2]
[359057461,1745681433208,-6216.79105588,0.00015368,2]
[359057463,1745681433218,-6216.79105588,0.00015368,2]
[359057465,1745681433228,-6216.79105588,0.00015368,2]
[359057467,1745681433239,-6216.79105588,0.00015368,2]
[359057469,1745681433249,-6216.79105588,0.00015368,2]
[359057471,1745681433260,-6216.79105588,0.00015368,2]
[359057473,1745681433270,-6216.79105588,0.00015368,2]
[359057475,1745681433280,-6216.79105588,0.00015368,2]
[359057477,1745681433293,-6216.79105588,0.00015368,2]
[359057479,1745681433303,-449.66500784,0.00015368,2]
[359057481,1745681433317,-5767.12604804,0.00015368,2]
[359057483,1745681433327,-6216.79105588,0.00015368,2]
[359057485,1745681433338,-6216.79105588,0.00015368,2]
[359057487,1745681433348,-6216.79105588,0.00015368,2]
[359057488,1745681433359,-6216.79105588,0.00015368,2]
[359057489,1745681433369,-6216.79105588,0.00015368,2]
[359057490,1745681433379,-6216.79105588,0.00015368,2]
[359057491,1745681433389,-6216.79105588,0.00015368,2]
[359057492,1745681433402,-6216.79105588,0.00015368,2]
[359057493,1745681433413,-6242.69435193,0.00015368,2]
[359057494,1745681433423,-6242.69435193,0.00015368,2]
[359057495,1745681433433,-6242.69435193,0.00015368,2]
[359057496,1745681433444,-6242.69435193,0.00015368,2]
[359057497,1745681433467,-6242.69435193,0.00015368,2]
[359057498,1745681433478,-6242.69435193,0.00015368,2]
[359057499,1745681433488,-6242.69435193,0.00015368,2]
[359057500,1745681433499,-6242.69435193,0.00015368,2]
[359057501,1745681433510,-6242.69435193,0.00015368,2]
[359057502,1745681433520,-6242.69435193,0.00015368,2]
[359057503,1745681433530,-6242.69435193,0.00015368,2]
[359057504,1745681433543,-6242.69435192,0.00015368,2]
[359057505,1745681433553,-478.52491759,0.00015368,2]
[359057506,1745681433563,-312.266335,0.00015369,2]
[359057507,1745681433574,-312.266335,0.00015369,2]
[359057508,1745681433584,-50000.0,0.00015369,2]
[359057509,1745681433594,-151.0,0.0001537,2]
[359057510,1745681433604,-24900.0,0.00015371,2]
[359057512,1745681433614,-500.0,0.00015373,2]
[359057513,1745681433624,-500.0,0.00015373,2]
[359057515,1745681433634,-500.0,0.00015373,2]
[359057518,1745681433644,-500.0,0.00015373,2]
[359057520,1745681433654,-500.0,0.00015373,2]
[359057522,1745681433664,-500.0,0.00015373,2]
[359057524,1745681433675,-500.0,0.00015373,2]
[359057526,1745681433687,-500.0,0.00015373,2]
[359057528,1745681433696,-500.0,0.00015373,2]
[359057530,1745681433712,-152.0,0.00015458,2]
[359057532,1745681433722,-192.0,0.00015806,2]
[359057534,1745681433732,-3154.47623706,0.00015863,2]
[359057536,1745681433742,-1000.0,0.00015963,2]
[359057538,1745681433751,-157.94596,0.00016192,2]
[359057540,1745681433761,-3687.6022185,0.00016225,2]
[359057542,1745681433772,-151.0,0.00016399,2]
[359057544,1745681433782,-400.0,0.00016438,2]
[359057546,1745681433793,-555.68,0.00016441,3]
[359057548,1745681433802,-277.84,0.00016441,3]
[359057550,1745681433812,-312.266335,0.00016451,2]
[359057552,1745681433823,-312.266335,0.00016451,2]
[359057554,1745681433832,-151.0,0.00016499,2]
[359057556,1745681433842,-151.0,0.00016499,2]
[359057558,1745681433852,-166.299791,0.00016499,2]
[359057560,1745681433862,-151.0,0.00016499,2]
[359057562,1745681433872,-400.0,0.00016499,2]
[359057564,1745681433881,-400.0,0.00016499,2]
[359057566,1745681433891,-400.0,0.00016499,2]
[359057568,1745681433902,-400.0,0.00016499,2]
[359057570,1745681433911,-158.5,0.000165,2]
[359057572,1745681433921,-151.0,0.000165,2]
[359057574,1745681433930,-151.0,0.00016511,2]
[359057576,1745681433941,-151.0,0.00016511,2]
[359057578,1745681433950,-4201.31538,0.00016511,2]
[359057580,1745681433960,-4201.31538,0.00016511,2]
[359057582,1745681433970,-4201.31538,0.00016511,2]
[359057584,1745681433980,-4201.31538,0.00016511,2]
[359057586,1745681433991,-151.0,0.00016511,2]
[359057588,1745681434001,-151.0,0.00016511,2]
[359057590,1745681434011,-151.0,0.00016511,2]
[359057592,1745681434021,-268.54527342,0.00016511,2]
[359057594,1745681434031,-151.0,0.00016512,2]
[359057596,1745681434042,-400.0,0.00016512,2]
[359057598,1745681434052,-400.0,0.00016512,2]
[359057600,1745681434063,-500.0,0.00016512,2]
[359057603,1745681434073,-500.0,0.00016512,2]
[359057605,1745681434083,-428.95685027,0.00016512,2]
[359057607,1745681434093,-225.15364822,0.00016512,2]
[359057609,1745681434103,-400.0,0.00016512,2]
[359057611,1745681434113,-400.0,0.00016512,2]
[359057613,1745681434123,-154.498067,0.00016513,2]
[359057615,1745681434133,-151.582562,0.00016513,2]
[359057617,1745681434143,-151.0,0.00016513,2]
[359057619,1745681434152,-400.0,0.00016513,2]
[359057621,1745681434162,-400.0,0.00016513,2]
[359057622,1745681434172,-209.919591,0.00016514,2]
[359057624,1745681434183,-23655.6359881,0.00016514,2]
[359057625,1745681434193,-151.0,0.00016514,2]
[359057627,1745681434203,-151.0,0.00016514,2]
[359057629,1745681434214,-500.0,0.00016573,2]
[359057631,1745681434224,-500.0,0.00016573,2]
[359057634,1745681434234,-400.0,0.00016712,2]
[359057636,1745681434244,-400.0,0.00016773,2]
[359057637,1745681434254,-443.53,0.00016773,2]
[359057639,1745681434264,-400.0,0.00016773,2]
[359057642,1745681434276,-377.28343142,0.00016773,2]
[359057644,1745681434286,-400.0,0.00016786,2]
[359057645,1745681434296,-400.0,0.00016786,2]
[359057647,1745681434306,-400.0,0.00016786,2]
[359057649,1745681434316,-400.0,0.00016786,2]
[359057652,1745681434336,-400.0,0.00016787,2]
[359057654,1745681434347,-400.0,0.00016787,2]
[359057656,1745681434357,-420.0,0.00016812,2]
[359057658,1745681434368,-506.8053129,0.00016884,2]
[359057660,1745681434378,-400.0,0.00016986,2]
[359057662,1745681434388,-400.0,0.00017047,2]
[359057664,1745681434399,-400.0,0.00017047,2]
[359057667,1745681434410,-486.23177819,0.0001706,2]
[359057669,1745681434420,-153.3,0.0001706,2]
[359057671,1745681434431,-400.0,0.0001706,2]
[359057673,1745681434441,-400.0,0.00017061,2]
[359057675,1745681434451,-400.0,0.00017061,2]
[359057677,1745681434460,-155.08,0.0001726,2]
[359057679,1745681434471,-400.0,0.00017321,2]
[359057681,1745681434481,-400.0,0.00017321,2]
[359057683,1745681434491,-400.0,0.00017334,2]
[359057685,1745681434501,-400.0,0.00017335,2]
[359057687,1745681434511,-400.0,0.00017335,2]
[359057688,1745681434521,-312.76639404,0.00017525,2]
[359057691,1745681434531,-400.0,0.00017525,2]
[359057692,1745681434543,-400.0,0.00017525,2]
[359057695,1745681434553,-400.0,0.00017525,2]
[359057696,1745681434562,-400.0,0.00017525,2]
[359057698,1745681434572,-500.0,0.00017525,2]
[359057700,1745681434582,-400.0,0.00017525,2]
[359057703,1745681434593,-500.0,0.00017526,2]
[359057704,1745681434602,-500.0,0.00017526,2]
[359057706,1745681434613,-500.0,0.00017534,2]
[359057708,1745681434623,-400.0,0.00017595,2]
[359057710,1745681434632,-400.0,0.00017609,2]
[359057733,1745681434865,-400.0,0.00017609,2]
[359057736,1745681434876,-160.0,0.00017614,2]
[359057738,1745681434886,-151.0,0.00017693,2]
[359057739,1745681434896,-400.0,0.00017799,2]
[359057741,1745681434906,-400.0,0.00017799,2]
[359057743,1745681434916,-400.0,0.00017799,2]
[359057745,1745681434927,-500.0,0.000178,2]
[359057747,1745681434936,-1111.36,0.00017811,3]
[359057749,1745681434946,-555.68,0.00017811,3]
[359057751,1745681434956,-400.0,0.00017869,2]
[359057753,1745681434965,-400.0,0.00017883,2]
[359057755,1745681434975,-400.0,0.00017883,2]
[359057757,1745681434984,-351.65,0.00018073,2]
[359057759,1745681434994,-474.03520262,0.00018073,2]
[359057761,1745681435004,-354.84,0.00018073,2]
[359057763,1745681435013,-400.0,0.00018143,2]
[359057765,1745681435023,-486.34316025,0.00018157,2]
[359057767,1745681435034,-400.0,0.00018157,2]
[359057769,1745681435044,-500.0,0.00018186,2]
[359057770,1745681435053,-500.0,0.0001835,2]
[359057772,1745681435063,-151.0,0.00018352,2]
[359057774,1745681435073,-151.0,0.00018352,2]
[359057776,1745681435082,-587.0,0.00018393,2]
[359057778,1745681435092,-394.47,0.00018417,2]
[359057780,1745681435101,-400.0,0.00018431,2]
[359057782,1745681435111,-234.40256264,0.00018626,2]
[359057784,1745681435121,-400.0,0.00018626,2]
[359057786,1745681435132,-500.0,0.00018626,2]
[359057788,1745681435143,-500.0,0.00018626,2]
[359057790,1745681435153,-500.0,0.00018626,2]
[359057792,1745681435163,-500.0,0.00018626,2]
[359057794,1745681435172,-505.96526536,0.00018626,2]
[359057796,1745681435182,-400.0,0.00018626,2]
[359057797,1745681435195,-400.0,0.00018626,2]
[359057799,1745681435205,-400.0,0.00018705,2]
[359057801,1745681435215,-500.0,0.00018899,2]
[359057803,1745681435224,-154.00008701,0.000189,2]
[359057805,1745681435234,-400.0,0.000189,2]
[359057807,1745681435243,-6159.11769619,0.000189,2]
[359057809,1745681435252,-400.0,0.00018979,2]
[359057811,1745681435262,-1260.85275002,0.0001898,2]
[359057813,1745681435272,-151.0,0.00018999,2]
[359057815,1745681435282,-151.0,0.00018999,2]
[359057817,1745681435292,-549.0,0.00019,2]
[359057819,1745681435302,-151.0,0.00019,2]
[359057821,1745681435311,-400.0,0.00019174,2]
[359057823,1745681435321,-151.0,0.00019178,2]
[359057825,1745681435330,-300.0,0.00019178,2]
[359057827,1745681435342,-156.587,0.00019233,2]
[359057829,1745681435352,-400.0,0.00019253,2]
[359057831,1745681435362,-162.380719,0.00019288,2]
[359057833,1745681435372,-179.845406,0.00019329,2]
[359057835,1745681435382,-151.0,0.00019329,2]
[359057836,1745681435392,-4201.31538,0.00019329,2]
[359057838,1745681435402,-4201.31538,0.00019329,2]
[359057840,1745681435412,-151.0,0.00019329,2]
[359057842,1745681435421,-151.0,0.00019329,2]
[359057844,1745681435431,-151.0,0.00019329,2]
[359057846,1745681435441,-151.0,0.00019329,2]
[359057848,1745681435450,-312.266335,0.00019329,2]
[359057850,1745681435460,-312.266335,0.00019329,2]
[359057852,1745681435470,-100000.0,0.00019329,2]
[359057854,1745681435480,-168.3888056,0.00019343,2]
[359057856,1745681435490,-500.0,0.00019373,2]
[359057858,1745681435500,-496.29329545,0.00019373,2]
[359057860,1745681435510,-174.61919141,0.00019398,2]
[359057862,1745681435520,-403.0,0.00019446,2]
[359057863,1745681435531,-400.0,0.00019448,2]
[359057865,1745681435542,-181.08010149,0.00019453,2]
[359057867,1745681435551,-500.0,0.00019498,2]
[359057869,1745681435562,-500.0,0.00019499,2]
[359057871,1745681435572,-500.0,0.00019499,2]
[359057873,1745681435585,-365.06416899,0.00019499,2]
[359057875,1745681435595,-187.78006525,0.00019508,2]
[359057877,1745681435605,-400.0,0.00019527,2]
[359057879,1745681435614,-194.72792766,0.00019563,2]
[359057881,1745681435624,-151.0,0.000196,2]
[359057883,1745681435634,-201.93286099,0.00019618,2]
[359057885,1745681435645,-252.35140804,0.00019673,2]
[359057887,1745681435656,-400.0,0.00019722,2]
[359057889,1745681435667,-400.0,0.00019801,2]
[359057891,1745681435677,-303.53375458,0.00019973,2]
[359057893,1745681435689,-500.0,0.00019973,2]
[359057895,1745681435699,-501.05742042,0.00019973,2]
[359057897,1745681435708,-500.0,0.00019973,2]
[359057898,1745681435719,-500.0,0.00019973,2]
[359057900,1745681435729,-525.20581423,0.00019973,2]
[359057902,1745681435739,-500.0,0.00019973,2]
[359057904,1745681435749,-448.33480722,0.00019973,2]
[359057907,1745681435762,-500.0,0.00019973,2]
[359057908,1745681435773,-500.0,0.00019973,2]
[359057910,1745681435783,-500.0,0.00019973,2]
[359057912,1745681435793,-500.0,0.00019973,2]
[359057914,1745681435803,-500.0,0.00019973,2]
[359057916,1745681435813,-500.65908257,0.00019973,2]
[359057918,1745681435823,-500.0,0.00019973,2]
[359057920,1745681435833,-500.0,0.00019973,2]
[359057922,1745681435843,-500.0,0.00019973,2]
[359057924,1745681435852,-500.0,0.00019973,2]
[359057926,1745681435862,-500.0,0.00019973,2]
[359057928,1745681435872,-500.0,0.00019973,2]
[359057930,1745681435882,-500.0,0.00019973,2]
[359057932,1745681435892,-500.0,0.00019973,2]
[359057934,1745681435902,-637.25114022,0.00019973,2]
[359057936,1745681435912,-400.0,0.00019996,2]
[359057938,1745681435922,-140985.66459472,0.0002,2]
[359057940,1745681435932,-2057.27392715,0.0002,3]
[359057942,1745681435942,-145783.4070108,0.0002,2]
[359057944,1745681435958,-3415.89375617,0.0002,2]
[359057946,1745681435970,-3687.60221849,0.0002,2]
[359058078,1745681438505,-1500.44964631,0.0002,2]
[359058079,1745681438517,-166145.54659572,0.0002,2]
[359058080,1745681438527,-151.0,0.0002,2]
[359058081,1745681438537,-212.298791,0.0002,2]
[359058082,1745681438546,-4201.31538,0.0002,2]
[359058083,1745681438556,-4201.31538,0.0002,2]
[359058084,1745681438565,-4201.31538,0.0002,2]
[359058085,1745681438575,-4201.31538,0.0002,2]
[359058086,1745681438584,-151.0,0.0002,2]
[359058087,1745681438594,-151.0,0.0002,2]
[359058088,1745681438604,-151.0,0.0002,2]
[359058089,1745681438613,-151.0,0.0002,2]
[359058090,1745681438623,-151.0,0.0002,2]
[359058091,1745681438633,-151.0,0.0002,2]
[359058092,1745681438642,-312.266335,0.0002,2]
[359058094,1745681438652,-312.266335,0.0002,2]
[359058095,1745681438662,-312.266335,0.0002,2]
[359058097,1745681438671,-312.266335,0.0002,2]
[359058098,1745681438684,-2000.0,0.0002,4]
[359058099,1745681438694,-400.0,0.00020075,2]
[359058100,1745681438703,-823.0,0.00020123,2]
[359058101,1745681438713,-1005.19469772,0.00020194,2]
[359058102,1745681438724,-400.0,0.0002027,2]
[359058103,1745681438734,-151.31843755,0.00020329,2]
[359058104,1745681438743,-400.0,0.00020349,2]
[359058105,1745681438755,-400.0,0.00020544,2]
[359058106,1745681438765,-151.0,0.00020548,2]
[359058107,1745681438775,-151.0,0.00020548,2]
[359058108,1745681438785,-158.29616,0.00020548,2]
[359058109,1745681438795,-400.0,0.00020623,2]
[359058110,1745681438805,-179.76630381,0.0002064,2]
[359058111,1745681438815,-215.0738,0.00020745,2]
[359058112,1745681438824,-400.0,0.00020818,2]
[359058113,1745681438834,-600.0,0.00020822,2]
[359058114,1745681438844,-160.0,0.00020832,3]
[359058115,1745681438854,-1000.0,0.00020852,2]
[359058116,1745681438863,-1000.0,0.00020852,2]
[359058117,1745681438872,-1000.0,0.00020852,2]
[359058118,1745681438883,-1000.0,0.00020852,2]
[359058119,1745681438892,-1000.0,0.00020852,2]
[359058120,1745681438902,-1000.0,0.00020852,2]
[359058121,1745681438912,-1000.0,0.00020852,2]
[359058122,1745681438922,-400.0,0.00020896,2]
[359058123,1745681438932,-151.0,0.00021,2]
[359058124,1745681438942,-157.45,0.00021,2]
[359058125,1745681438952,-2000.0,0.00021,4]
[359058126,1745681438962,-151.0,0.0002107,2]
[359058127,1745681438971,-442.53371788,0.00021092,2]
[359058128,1745681438981,-400.0,0.0002117,2]
[359058129,1745681438991,-400.0,0.00021444,2]
[359058130,1745681439002,-151.0,0.000217,4]
[359058131,1745681439012,-400.0,0.00021718,2]
[359058132,1745681439021,-12698.39408107,0.00021913,2]
[359058133,1745681439031,-162.248,0.00021915,2]
[359058134,1745681439041,-160.0,0.00021917,2]
[359058135,1745681439051,-500.0,0.00021917,2]
[359058136,1745681439061,-245.07352231,0.00021917,2]
[359058137,1745681439072,-203.214946,0.00021918,2]
[359058138,1745681439082,-203.214946,0.00021918,2]
[359058139,1745681439092,-203.214946,0.00021918,2]
[359058140,1745681439102,-203.214946,0.00021918,2]
[359058141,1745681439111,-203.214946,0.00021918,2]
[359058142,1745681439122,-203.214946,0.00021918,2]
[359058143,1745681439132,-166.0,0.00021918,2]
[359058144,1745681439141,-500.0,0.00021973,2]
[359058145,1745681439152,-150.0,0.00021973,2]
[359058146,1745681439162,-330.2735595,0.00021992,2]
[359058147,1745681439172,-100401.79590186,0.00022,7]
[359058148,1745681439182,-127585.16040721,0.00022,2]
[359058149,1745681439195,-9065.38931813,0.00022,2]
[359058150,1745681439207,-557.62853394,0.00022,2]
[359058357,1745681441874,-264.3595,0.00015684,2]
[359058359,1745681441884,-400.0,0.00016438,2]
[359058362,1745681441894,-400.0,0.00016712,2]
[359058364,1745681441904,-327.57,0.00016986,2]
[359058365,1745681441913,-2655.03690229,0.00022,2]
[359058646,1745681445511,-940.00013713,0.000199,2]
[359058698,1745682426124,-913.41750259,0.00014148,2]
[359058699,1745682426145,-923.14343225,0.00014183,2]
[359058700,1745682430089,-234.46863495,0.00014183,2]
[359058701,1745682430112,-250.0,0.00014291,2]
[359058702,1745682430134,-406.354799,0.00014324,2]
[359058703,1745682430156,-115.55386644,0.00014642,2]
[359058704,1745682432098,-826.71858406,0.00014642,2]
[359058705,1745682432128,-300.0,0.00015358,2]
[359058706,1745682432161,-160.0,0.00015358,2]
[359058707,1745682432192,-300.0,0.00015359,2]
[359058708,1745682432223,-1200.0,0.00015359,2]
[359058709,1745682432252,-259.93908924,0.00015359,2]
[359058715,1745682546121,-300.0,0.00014361,2]
[359058716,1745682546143,-21308.94022,0.00014362,2]
[359058717,1745682547123,-309.0233612,0.00014362,2]
[359058718,1745682547143,-152.68707532,0.00015249,2]
[359058719,1745682547166,-1111.54437843,0.00015259,2]
[359058720,1745682553133,-980.0,0.00015259,2]
[359058721,1745682554097,-231.04824483,0.00015259,2]
[359058722,1745682562182,-155.15,0.00015349,3]
[359058723,1745682562205,-465.46,0.00015349,3]
[359058724,1745682562227,-249.89808286,0.00015358,2]
[359058725,1745682562249,-500.0,0.00015358,2]
[359058726,1745682562273,-57.59277788,0.00015358,2]
[359058727,1745682563111,-1115.06559989,0.00015358,2]
[359058728,1745682570026,160.0,0.00015,2]
[359058778,1745682632568,-300.0,0.00015356,2]
[359058780,1745682632579,-1200.0,0.00015356,2]
[359058782,1745682632590,-749.60141774,0.00015357,2]
[359058784,1745682632602,-59675.24633383,0.00015357,2]
[359058786,1745682632612,-184.47374075,0.00015358,2]
[359058788,1745682632623,-399.44936625,0.00015358,2]
[359058790,1745682632633,-500.0,0.00015358,2]
[359058792,1745682632642,-500.0,0.00015358,2]
[359058794,1745682632652,-892.42765947,0.00015358,2]
[359058796,1745682632662,-500.0,0.00015358,2]
[359058798,1745682632671,-489.40809802,0.00015358,2]
[359058801,1745682632682,-892.42765947,0.00015358,2]
[359058804,1745682632691,-518.3,0.00015358,2]
[359058807,1745682632702,-892.42765947,0.00015358,2]
[359058809,1745682632712,-892.42765947,0.00015358,2]
[359058811,1745682632721,-892.42765947,0.00015358,2]
[359058812,1745682632731,-892.42765947,0.00015358,2]
[359058814,1745682632741,-892.42765947,0.00015358,2]
[359058816,1745682632751,-892.42765947,0.00015358,2]
[359058818,1745682632761,-892.42765947,0.00015358,2]
[359058820,1745682632770,-892.42765947,0.00015358,2]
[359058821,1745682632780,-892.42765947,0.00015358,2]
[359058822,1745682632790,-892.42765947,0.00015358,2]
[359058823,1745682632800,-892.42765947,0.00015358,2]
[359058825,1745682632810,-892.42765947,0.00015358,2]
[359058827,1745682632820,-892.42765947,0.00015358,2]
[359058828,1745682632830,-892.42765947,0.00015358,2]
[359058829,1745682632840,-892.42765947,0.00015358,2]
[359058830,1745682632851,-892.42765947,0.00015358,2]
[359058831,1745682632861,-892.42765947,0.00015358,2]
[359058832,1745682632872,-892.42765947,0.00015358,2]
[359058833,1745682632882,-892.42765947,0.00015358,2]
[359058834,1745682632892,-892.42765947,0.00015358,2]
[359058835,1745682632902,-892.42765947,0.00015358,2]
[359058836,1745682632917,-892.42765947,0.00015358,2]
[359058837,1745682632927,-892.42765947,0.00015358,2]
[359058838,1745682632937,-892.42765947,0.00015358,2]
[359058839,1745682632946,-892.42765947,0.00015358,2]
[359058840,1745682632957,-892.42765947,0.00015358,2]
[359058841,1745682632967,-892.42765947,0.00015358,2]
[359058842,1745682632977,-892.42765947,0.00015358,2]
[359058843,1745682632987,-892.42765947,0.00015358,2]
[359058844,1745682632996,-892.42765947,0.00015358,2]
[359058845,1745682633006,-892.42765947,0.00015358,2]
[359058846,1745682633016,-892.42765947,0.00015358,2]
[359058847,1745682633026,-892.42765947,0.00015358,2]
[359058848,1745682633037,-892.42765947,0.00015358,2]
[359058849,1745682633046,-892.42765947,0.00015358,2]
[359058850,1745682633056,-892.42765947,0.00015358,2]
[359058851,1745682633067,-500.0,0.00015358,2]
[359058852,1745682633077,-500.0,0.00015358,2]
[359058853,1745682633087,-500.0,0.00015358,2]
[359058854,1745682633098,-500.0,0.00015358,2]
[359058855,1745682633108,-500.0,0.00015358,2]
[359058856,1745682633119,-500.0,0.00015358,2]
[359058857,1745682633129,-231.30405733,0.00015358,2]
[359058858,1745682633139,-500.0,0.00015358,2]
[359058859,1745682633148,-546.83725451,0.00015358,2]
[359058860,1745682633158,-3367.14918501,0.00015358,2]
[359058861,1745682633168,-3367.14918501,0.00015358,2]
[359058862,1745682633178,-3367.14918501,0.00015358,2]
[359058863,1745682633189,-3367.14918501,0.00015358,2]
[359058864,1745682633199,-3367.14918501,0.00015358,2]
[359058865,1745682633209,-3367.14918501,0.00015358,2]
[359058866,1745682633219,-3367.14918501,0.00015358,2]
[359058867,1745682633229,-3367.14918501,0.00015358,2]
[359058868,1745682633239,-3367.14918501,0.00015358,2]
[359058869,1745682633249,-3367.14918501,0.00015358,2]
[359058870,1745682633259,-3367.14918501,0.00015358,2]
[359058871,1745682633269,-3367.14918501,0.00015358,2]
[359058872,1745682633279,-3367.14918501,0.00015358,2]
[359058873,1745682633289,-3367.14918501,0.00015358,2]
[359058874,1745682633299,-3367.14918501,0.00015358,2]
[359058875,1745682633309,-3367.14918501,0.00015358,2]
[359058876,1745682633319,-3367.14918501,0.00015358,2]
[359058877,1745682633328,-3367.14918501,0.00015358,2]
[359058878,1745682633339,-3367.14918501,0.00015358,2]
[359058879,1745682633350,-3367.14918501,0.00015358,2]
[359058880,1745682633363,-3367.14918501,0.00015358,2]
[359058881,1745682633373,-3367.14918501,0.00015358,2]
[359058882,1745682633383,-3367.14918501,0.00015358,2]
[359058883,1745682633395,-3367.14918501,0.00015358,2]
[359058884,1745682633405,-3367.14918501,0.00015358,2]
[359058885,1745682633415,-3319.04705379,0.00015358,2]
[359058886,1745682633426,-3319.04705379,0.00015358,2]
[359058887,1745682633436,-3319.04705379,0.00015358,2]
[359058888,1745682633447,-3319.04705379,0.00015358,2]
[359058889,1745682633457,-3319.04705379,0.00015358,2]
[359058890,1745682633467,-3319.04705379,0.00015358,2]
[359058891,1745682633478,-3319.04705379,0.00015358,2]
[359058892,1745682633488,-3319.04705379,0.00015358,2]
[359058893,1745682633498,-3319.04705379,0.00015358,2]
[359058894,1745682633508,-3319.04705379,0.00015358,2]
[359058895,1745682633518,-3319.04705379,0.00015358,2]
[359058896,1745682633529,-3319.04705379,0.00015358,2]
[359058897,1745682633539,-3319.04705379,0.00015358,2]
[359058898,1745682633552,-3319.04705379,0.00015358,2]
[359058899,1745682633563,-3319.04705379,0.00015358,2]
[359058900,1745682633574,-3319.04705379,0.00015358,2]
[359058901,1745682633584,-3319.04705379,0.00015358,2]
[359058902,1745682633595,-3319.04705379,0.00015358,2]
[359058903,1745682633604,-3319.04705379,0.00015358,2]
[359058904,1745682633616,-3319.04705379,0.00015358,2]
[359058905,1745682633626,-3319.04705384,0.00015358,2]
[359058906,1745682633636,-500.0,0.00015373,2]
[359058907,1745682633646,-362.19133297,0.00015373,2]
[359058908,1745682633656,-500.0,0.00015373,2]
[359058909,1745682633666,-500.0,0.00015373,2]
[359058910,1745682633676,-500.0,0.00015373,2]
[359058911,1745682633686,-1875.20228456,0.000159,2]
[359058912,1745682633697,-500.0,0.00016038,2]
[359058913,1745682633708,-500.0,0.00016038,2]
[359058914,1745682633719,-500.0,0.00016038,2]
[359058915,1745682633729,-433.75765262,0.00016164,2]
[359058916,1745682633740,-500.0,0.00016438,2]
[359058917,1745682633749,-500.0,0.00016438,2]
[359058918,1745682633760,-500.0,0.00016438,2]
[359058919,1745682633770,-500.0,0.00016438,2]
[359058920,1745682633780,-400.0,0.00016438,2]
[359058921,1745682633788,-400.0,0.00016438,2]